bitfinex/quotes_ETHUSD_20250520
["timestamp","ask_amount","ask_price","bid_price","bid_amount"]
[1747732608301,4.7182414,2533.8,2533.7,30.441]
[1747732608497,4.7182414,2533.8,2533.7,24.526]
[1747732608722,4.7182414,2533.8,2533.7,17.036]
[1747732609035,5.61261446,2533.8,2533.7,24.526]
[1747732612244,13.61261446,2533.8,2533.7,17.036]
[1747732612544,13.61261446,2533.8,2533.7,24.526]
[1747732614751,13.61261446,2533.8,2533.7,24.527]
[1747732615640,13.61261446,2533.8,2533.7,17.036]
[1747732615841,13.61261446,2533.8,2533.7,24.527]
[1747732619676,14.16261446,2533.8,2533.7,24.527]
[1747732620055,3.94757618,2533.2,2533.1,0.05]
[1747732620259,4.73647618,2533.2,2533.1,7.542]
[1747732620454,4.73647618,2533.2,2533.1,0.05]
[1747732620652,4.73647618,2533.2,2533.1,7.542]
[1747732620852,6.61186939,2533.2,2533.1,7.542]
[1747732621184,6.61186939,2533.2,2533.1,0.05]
[1747732621341,28.4376871,2533.2,2533.1,0.05]
[1747732626007,16.68186939,2533.2,2533.1,7.543]
[1747732628761,14.01757618,2533.2,2533.1,7.543]
[1747732629365,3.94757618,2533.2,2533.1,25.3609]
[1747732630558,3.94757618,2533.2,2533.1,24.588]
[1747732632892,3.94757618,2533.2,2533.1,17.094]
[1747732633111,3.94757618,2533.2,2533.1,24.582]
[1747732633254,3.93757618,2533.2,2533.1,24.582]
[1747732634460,3.93757618,2533.2,2533.1,17.094]
[1747732634800,3.93757618,2533.2,2533.1,24.582]
[1747732635090,3.93757618,2533.2,2533.1,17.094]
[1747732635292,3.93757618,2533.2,2533.1,24.582]
[1747732635898,3.93757618,2533.2,2533.1,17.094]
[1747732636096,15.82797645,2533.2,2533.1,24.582]
[1747732636308,15.82797645,2533.2,2533.1,0.05]
[1747732636474,25.89797645,2533.2,2533.1,0.05]
[1747732637689,27.56531851,2533.2,2533.1,0.05]
[1747732639916,31.92050346,2533.2,2533.1,0.05]
[1747732640206,32.54891295,2533.2,2533.1,0.05]
[1747732641202,31.92050346,2533.2,2533.1,0.05]
[1747732641591,27.77050346,2533.2,2533.1,0.05]
[1747732644520,16.01149134,2533.2,2533.1,0.05]
[1747732644834,14.00757618,2533.2,2533.1,0.05]
[1747732645618,3.93757618,2533.2,2533.1,0.05]
[1747732645817,3.93757618,2533.2,2533.1,0.8066]
[1747732649871,3.93757618,2533.2,2533.1,7.539]
[1747732650042,3.93757618,2533.2,2533.1,0.05]
[1747732650249,4.38642757,2533.2,2533.1,7.538]
[1747732650466,3.93757618,2533.2,2533.1,7.538]
[1747732651770,3.93757618,2533.2,2533.1,0.05]
[1747732651999,3.93757618,2533.2,2533.1,7.538]
[1747732654280,3.93757618,2533.2,2533.1,8.2939]
[1747732654763,3.93757618,2533.2,2533.1,7.539]
[1747732655373,4.72607939,2533.2,2533.1,0.05]
[1747732655561,4.72607939,2533.2,2533.1,7.539]
[1747732656683,4.72607939,2533.2,2533.1,0.05]
[1747732656867,4.72607939,2533.2,2533.1,7.539]
[1747732659972,5.27607939,2533.2,2533.1,7.539]
[1747732661084,13.27607939,2533.2,2533.1,7.539]
[1747732661287,5.27607939,2533.2,2533.1,7.539]
[1747732661488,3.93757618,2533.2,2533.1,7.539]
[1747732662589,4.48757618,2533.2,2533.1,7.539]
[1747732662959,15.6965883,2533.2,2533.1,7.539]
[1747732664290,26.5194883,2533.2,2533.1,0.05]
[1747732665394,26.72476588,2533.2,2533.1,0.05]
[1747732665760,29.81144192,2533.2,2533.1,0.05]
[1747732666882,33.96144192,2533.2,2533.1,0.05]
[1747732669918,4.49913513,2532.2,2532.1,1.05]
[1747732670114,14.51913513,2532.2,2532.1,1.05]
[1747732670274,25.2163835,2532.2,2532.1,1.05]
[1747732670712,25.9910835,2532.2,2532.1,1.05]
[1747732672009,13.96913513,2532.2,2532.1,1.05]
[1747732672614,13.96913513,2532.2,2532.1,1.8176]
[1747732674114,13.96913513,2532.2,2532.1,9.3046]
[1747732674416,13.96913513,2532.2,2532.1,8.537]
[1747732678207,13.96913513,2532.2,2532.1,1.05]
[1747732678414,16.15583229,2532.2,2532.1,8.538]
[1747732680519,16.15583229,2532.2,2532.1,1.05]
[1747732680723,16.15583229,2532.2,2532.1,8.538]
[1747732680889,16.15583229,2532.2,2532.1,1.05]
[1747732681220,16.15583229,2532.2,2532.1,8.538]
[1747732681420,13.96913513,2532.2,2532.1,8.538]
[1747732687040,13.96913513,2532.2,2532.1,9.3524]
[1747732689731,13.96913513,2532.2,2532.1,8.538]
[1747732691408,13.96913513,2532.2,2532.1,1.05]
[1747732691611,13.96913513,2532.2,2532.1,8.538]
[1747732691969,16.15583229,2532.2,2532.1,8.538]
[1747732692413,13.96913513,2532.2,2532.1,8.538]
[1747732695565,13.96913513,2532.2,2532.1,9.2893]
[1747732695946,3.94913513,2532.2,2532.1,9.2893]
[1747732696471,3.94913513,2532.2,2532.1,8.538]
[1747732700087,3.94913513,2532.2,2532.1,9.3426]
[1747732700235,3.94913513,2532.2,2532.1,10.27686]
[1747732700764,3.94913513,2532.2,2532.1,16.19486]
[1747732703460,3.94913513,2532.2,2532.1,15.2606]
[1747732704357,3.94913513,2532.2,2532.1,15.2596]
[1747732705608,3.94913513,2532.2,2532.1,1.8546]
[1747732705913,3.94913513,2532.2,2532.1,15.2586]
[1747732706211,3.94913513,2532.2,2532.1,9.3396]
[1747732707494,3.94913513,2532.2,2532.1,8.535]
[1747732709717,3.94913513,2532.2,2532.1,9.2871]
[1747732710009,3.94913513,2532.2,2532.1,10.80771]
[1747732713377,3.94788787,2533.0,2532.1,8.535]
[1747732713701,3.94788787,2533.0,2532.2,3.94907786]
[1747732713702,3.94858132,2532.6,2532.2,3.94907786]
[1747732713871,3.94858132,2532.6,2532.3,0.7779]
[1747732715990,3.94852564,2532.6,2532.3,0.7779]
[1747732716192,10.02,2533.8,2532.6,0.81]
[1747732716495,3.9480055,2533.0,2532.9,0.8179]
[1747732716671,3.9480055,2533.0,2532.9,31.7839]
[1747732716867,3.94781675,2533.1,2533.0,8.0]
[1747732718316,3.94759891,2533.2,2533.0,8.0]
[1747732718500,3.94748628,2533.3,2533.1,11.99069]
[1747732718708,3.94732557,2533.4,2533.3,8.8123]
[1747732718709,3.94736725,2533.4,2533.3,8.8123]
[1747732720007,3.94703307,2533.6,2533.4,0.8187]
[1747732720886,3.94710874,2533.5,2533.4,0.8187]
[1747732721083,3.94710874,2533.5,2533.4,1.78173538]
[1747732724710,3.94710874,2533.5,2533.4,9.76601238]
[1747732725307,3.94710874,2533.5,2533.4,8.63928938]
[1747732725507,3.94788787,2533.0,2532.9,17.047]
[1747732725695,3.94788787,2533.0,2532.9,38.443]
[1747732725901,3.94788787,2533.0,2532.9,52.31361]
[1747732726104,3.94788787,2533.0,2532.9,52.402445]
[1747732726412,3.94744565,2533.3,2533.1,0.814]
[1747732726706,3.94744565,2533.3,2533.2,8.6505]
[1747732727089,3.94744565,2533.3,2533.2,0.8265]
[1747732729898,3.94773202,2533.1,2533.0,8.7842]
[1747732730099,3.94773202,2533.1,2533.0,22.1792]
[1747732730686,3.94773202,2533.1,2533.0,15.479]
[1747732730888,3.94788787,2533.0,2532.9,17.047]
[1747732731115,3.94788787,2533.0,2532.9,30.442]
[1747732731308,3.94788787,2533.0,2532.9,38.442]
[1747732731511,3.94788787,2533.0,2532.9,17.047]
[1747732731717,3.94882325,2532.4,2532.3,0.825]
[1747732732023,3.94897918,2532.3,2532.2,17.50672279]
[1747732732225,3.94897918,2532.3,2532.2,32.98572279]
[1747732732843,3.94897918,2532.3,2532.2,24.519]
[1747732737125,3.94897918,2532.3,2532.2,25.275]
[1747732737341,3.94897918,2532.3,2532.2,24.519]
[1747732744250,3.94897918,2532.3,2532.2,30.437]
[1747732747128,3.94897918,2532.3,2532.2,34.3734]
[1747732749448,3.94897918,2532.3,2532.2,30.437]
[1747732752454,3.94897918,2532.3,2532.2,17.04]
[1747732752755,3.94897918,2532.3,2532.2,30.439]
[1747732753968,3.94897918,2532.3,2532.2,17.04]
[1747732754140,3.94913513,2532.2,2532.1,1.05]
[1747732754344,13.51621537,2532.2,2532.1,1.05]
[1747732754544,14.06621537,2532.2,2532.1,0.65625]
[1747732754743,24.08621537,2532.2,2532.1,0.65625]
[1747732755264,24.47858266,2532.2,2532.1,0.65625]
[1747732757936,23.53621537,2532.2,2532.1,0.65625]
[1747732760044,14.74643513,2532.2,2532.1,0.65625]
[1747732760448,13.96913513,2532.2,2532.1,0.65625]
[1747732760843,3.94913513,2532.2,2532.1,0.65625]
[1747732762242,3.94913513,2532.2,2532.1,8.13725]
[1747732769876,23.29783513,2532.2,2532.1,0.65625]
[1747732770088,26.7383001,2532.2,2532.1,0.47485639]
[1747732770259,26.94362617,2532.2,2532.1,0.47485639]
[1747732772477,27.57186842,2532.2,2532.1,0.47485639]
[1747732773960,26.94362617,2532.2,2532.1,0.47485639]
[1747732776080,31.09362617,2532.2,2532.1,0.47485639]
[1747732776545,5.33118318,2531.4,2531.3,17.05]
[1747732776754,4.50069532,2531.2,2531.1,0.05]
[1747732776948,13.33149532,2531.2,2531.1,0.05]
[1747732777685,23.35149532,2531.2,2531.1,0.05]
[1747732777886,23.7505999,2531.2,2531.1,0.05]
[1747732778180,27.28996853,2531.2,2531.1,0.05]
[1747732781613,31.43996853,2531.2,2531.1,0.05]
[1747732781816,5.32395673,2530.2,2530.1,0.05]
[1747732782119,15.29395673,2530.2,2530.1,0.05]
[1747732782915,14.74395673,2530.2,2530.1,0.05]
[1747732783116,13.92225673,2530.2,2530.1,0.05]
[1747732783841,16.33487557,2530.2,2530.1,0.05]
[1747732786118,17.10797557,2530.2,2530.1,0.05]
[1747732787130,25.10797557,2530.2,2530.1,0.05]
[1747732787716,3.95381938,2529.2,2529.1,0.05]
[1747732788021,5.29961938,2529.2,2529.1,0.05]
[1747732788326,6.22495075,2529.2,2529.1,0.05]
[1747732791329,6.6183097,2529.2,2529.1,0.05]
[1747732797835,16.5383097,2529.2,2529.1,0.05]
[1747732799565,15.7425097,2529.2,2529.1,0.05]
[1747732799769,13.87381938,2529.2,2529.1,0.05]
[1747732800372,3.95381938,2529.2,2529.1,0.8656]
[1747732801785,3.95381938,2529.2,2529.1,17.9366]
[1747732802385,3.95379264,2529.3,2529.1,25.9366]
[1747732802574,3.95379264,2529.3,2529.2,4.13886]
[1747732802883,3.95379264,2529.3,2529.2,0.7964]
[1747732803182,3.95381938,2529.2,2529.1,24.609]
[1747732814103,3.95381938,2529.2,2529.1,25.4104]
[1747732822769,3.95381938,2529.2,2529.1,33.4104]
[1747732823171,3.95381938,2529.2,2529.1,36.75144]
[1747732823720,3.95381938,2529.2,2529.1,42.67844]
[1747732823889,3.95381938,2529.2,2529.1,41.87704]
[1747732824539,3.95381938,2529.2,2529.1,42.66474]
[1747732826533,3.95381938,2529.2,2529.1,39.3237]
[1747732833238,3.95381938,2529.2,2529.1,33.3967]
[1747732833440,3.95381938,2529.2,2529.1,39.3227]
[1747732835131,3.95381938,2529.2,2529.1,25.9087]
[1747732835442,3.95381938,2529.2,2529.1,33.3937]
[1747732835920,3.95381938,2529.2,2529.1,25.121]
[1747732836148,3.95381938,2529.2,2529.1,32.606]
[1747732836307,3.95381938,2529.2,2529.1,24.606]
[1747732836511,7.64815723,2529.2,2529.1,0.05]
[1747732836717,6.10156989,2529.2,2529.1,0.05]
[1747732837342,15.64815723,2529.2,2529.1,0.05]
[1747732841775,25.56815723,2529.2,2529.1,0.05]
[1747732842282,26.19527582,2529.2,2529.1,0.05]
[1747732842441,4.73658327,2528.2,2528.1,0.05]
[1747732842642,5.28658327,2528.2,2528.1,0.05]
[1747732843427,4.73658327,2528.2,2528.1,0.05]
[1747732843646,3.95538327,2528.2,2528.1,0.05]
[1747732845178,4.50538327,2528.2,2528.1,0.05]
[1747732845491,18.84701344,2528.2,2528.1,0.05]
[1747732845665,15.22958327,2528.2,2528.1,0.05]
[1747732846295,23.61943694,2528.2,2528.1,0.05]
[1747732858535,13.87538327,2528.2,2528.1,7.539]
[1747732859420,15.65844737,2528.2,2528.1,7.539]
[1747732860450,17.01964737,2528.2,2528.1,0.05]
[1747732861017,15.65844737,2528.2,2528.1,0.05]
[1747732862054,13.87538327,2528.2,2528.1,0.05]
[1747732862534,3.95538327,2528.2,2528.1,0.05]
[1747732864163,3.95538327,2528.2,2528.1,0.8558]
[1747732867858,3.95538327,2528.2,2528.1,8.3448]
[1747732868051,3.95538327,2528.2,2528.1,0.8558]
[1747732868250,3.95538327,2528.2,2528.1,7.539]
[1747732870231,3.95538327,2528.2,2528.1,8.37265]
[1747732870568,3.95538327,2528.2,2528.1,9.14965]
[1747732871442,3.95538327,2528.2,2528.1,8.316]
[1747732873437,3.95538327,2528.2,2528.1,8.315]
[1747732874080,3.95538327,2528.2,2528.1,7.538]
[1747732874279,3.95538327,2528.2,2528.1,0.05]
[1747732874477,3.95538327,2528.2,2528.1,7.538]
[1747732874782,4.74644737,2528.2,2528.1,7.538]
[1747732874958,4.74644737,2528.2,2528.1,0.05]
[1747732875161,4.74644737,2528.2,2528.1,7.538]
[1747732875690,3.95538327,2528.2,2528.1,7.538]
[1747732878675,3.95538327,2528.2,2528.1,0.05]
[1747732878899,4.72418327,2528.2,2528.1,0.05]
[1747732879102,5.27418327,2528.2,2528.1,0.05]
[1747732879295,13.27418327,2528.2,2528.1,0.05]
[1747732879590,25.0719062,2528.2,2528.1,0.05]
[1747732882575,25.69902479,2528.2,2528.1,0.05]
[1747732887561,3.9569484,2527.2,2527.1,8.539]
[1747732888809,3.9569484,2527.2,2527.1,1.05]
[1747732889215,15.92473674,2527.2,2527.1,1.05]
[1747732889397,17.9894931,2527.2,2527.1,1.05]
[1747732889792,16.44170476,2527.2,2527.1,1.05]
[1747732890199,13.8269484,2527.2,2527.1,1.05]
[1747732891698,14.3769484,2527.2,2527.1,1.05]
[1747732892015,15.1945484,2527.2,2527.1,1.05]
[1747732892190,23.1945484,2527.2,2527.1,1.05]
[1747732893823,23.82166699,2527.2,2527.1,1.05]
[1747732894027,26.79317845,2527.2,2527.1,1.05]
[1747732895433,4.50851476,2526.2,2526.1,0.05]
[1747732895601,23.6809031,2526.2,2526.1,0.05]
[1747732896090,21.32851476,2526.2,2526.1,0.05]
[1747732896297,26.38057251,2526.2,2526.1,0.05]
[1747732896705,24.83278417,2526.2,2526.1,0.05]
[1747732896909,16.01198417,2526.2,2526.1,0.05]
[1747732897097,13.32851476,2526.2,2526.1,0.05]
[1747732897296,12.77851476,2526.2,2526.1,0.05]
[1747732897731,13.32851476,2526.2,2526.1,0.05]
[1747732902416,22.13091476,2526.2,2526.1,0.05]
[1747732903338,14.13091476,2526.2,2526.1,0.05]
[1747732903545,13.32851476,2526.2,2526.1,0.05]
[1747732903743,14.03254459,2526.2,2526.1,0.05]
[1747732908160,22.80914459,2526.2,2526.1,0.05]
[1747732908451,23.01457834,2526.2,2526.1,0.05]
[1747732908614,27.73395918,2526.2,2526.1,0.05]
[1747732909755,27.17557834,2526.2,2526.1,0.05]
[1747732909952,23.01457834,2526.2,2526.1,0.05]
[1747732914028,13.68797834,2526.2,2526.1,0.05]
[1747732914332,12.77851476,2526.2,2526.1,0.05]
[1747732915425,3.95851476,2526.2,2526.1,0.8433]
[1747732916865,3.95839103,2526.3,2526.1,0.8433]
[1747732917027,3.95710498,2527.1,2526.1,0.8433]
[1747732917359,3.95835807,2526.3,2526.2,1.65053]
[1747732917725,3.95835807,2526.3,2526.2,0.7662]
[1747732917930,3.95835807,2526.3,2526.2,8.3132]
[1747732920357,3.95679183,2527.3,2526.4,0.7775]
[1747732920579,3.95782954,2526.7,2526.5,0.03957615]
[1747732920889,3.95782954,2526.7,2526.4,0.7775]
[1747732920890,3.95792228,2526.6,2526.4,0.7775]
[1747732921096,3.9577438,2526.7,2526.4,0.7775]
[1747732921097,3.95777937,2526.7,2526.4,0.7775]
[1747732921388,1.54964027,2528.0,2526.4,0.7775]
[1747732921389,3.95756183,2526.9,2526.7,0.8129]
[1747732921597,3.95730667,2527.0,2526.9,0.8129]
[1747732922084,3.95730667,2527.0,2526.9,8.3599]
[1747732922547,3.95703212,2527.2,2527.0,0.8161]
[1747732922892,3.95670174,2527.4,2527.2,0.8161]
[1747732923092,3.95679183,2527.3,2527.2,0.8161]
[1747732923247,3.95679183,2527.3,2527.2,1.69771]
[1747732923777,3.95679183,2527.3,2527.2,1.69441]
[1747732923988,3.95676514,2527.4,2527.3,8.8128]
[1747732924297,3.95676514,2527.4,2527.3,16.3725]
[1747732924594,3.95676514,2527.4,2527.3,18.097911]
[1747732924797,3.95676514,2527.4,2527.3,0.8265]
[1747732924985,3.95676514,2527.4,2527.3,8.3725]
[1747732927455,3.95676514,2527.4,2527.3,0.8265]
[1747732927902,3.95676514,2527.4,2527.3,8.3705]
[1747732930070,3.95676514,2527.4,2527.3,0.8265]
[1747732930300,3.95676514,2527.4,2527.3,8.3705]
[1747732930680,3.95741818,2526.9,2526.8,17.8489]
[1747732930881,3.95741818,2526.9,2526.8,27.17779]
[1747732931092,3.95741818,2526.9,2526.8,35.17779]
[1747732931605,3.95741818,2526.9,2526.8,25.3929]
[1747732937324,3.95741818,2526.9,2526.8,33.3929]
[1747732938526,3.95741818,2526.9,2526.8,25.8489]
[1747732938690,3.95741818,2526.9,2526.8,17.8489]
[1747732938885,3.95741818,2526.9,2526.8,31.3239]
[1747732939089,3.95741818,2526.9,2526.8,31.3229]
[1747732939622,3.95741818,2526.9,2526.8,17.8489]
[1747732939829,3.95741818,2526.9,2526.8,25.4509]
[1747732941528,3.95741818,2526.9,2526.8,17.8489]
[1747732941719,4.74888938,2526.9,2526.8,24.693]
[1747732942023,3.95741818,2526.9,2526.8,24.693]
[1747732943128,3.95741818,2526.9,2526.8,25.4786]
[1747732943525,3.95741818,2526.9,2526.8,35.043031]
[1747732943946,3.95741818,2526.9,2526.8,33.060397]
[1747732944746,3.95616568,2527.7,2526.9,8.7742]
[1747732944936,3.95687427,2527.3,2527.2,0.817]
[1747732945235,3.95687427,2527.3,2527.2,8.419]
[1747732945438,3.95687427,2527.3,2527.2,0.817]
[1747732945939,3.95687427,2527.3,2527.2,14.35]
[1747732946144,3.95666521,2527.4,2527.3,8.0]
[1747732946356,3.95475757,2528.6,2527.4,0.7928]
[1747732946644,3.95616568,2527.7,2527.6,0.7928]
[1747732946938,3.95616568,2527.7,2527.6,15.134269]
[1747732947246,8.82,2528.7,2527.7,8.8223]
[1747732947452,0.05,2528.9,2527.9,8.8223]
[1747732947599,3.95444479,2528.8,2528.0,0.86184597]
[1747732947801,3.95467567,2528.7,2528.3,0.7524]
[1747732948042,3.9545507,2528.8,2528.1,7.601]
[1747732948043,3.95486302,2528.6,2528.5,8.7524]
[1747732948254,3.95486302,2528.6,2528.5,16.3534]
[1747732948533,4.00435005,2528.9,2528.6,0.7524]
[1747732948534,4.00430625,2528.9,2528.6,0.7524]
[1747732948906,4.00430625,2528.9,2528.7,15.800858]
[1747732949220,4.00430625,2528.9,2528.8,21.030258]
[1747732949418,4.00430625,2528.9,2528.8,23.2133238]
[1747732949744,4.00430625,2528.9,2528.8,23.9678238]
[1747732949908,0.05,2528.9,2528.8,31.9678238]
[1747732950103,0.05,2529.9,2529.0,0.7545]
[1747732950312,3.95288165,2529.8,2529.2,0.7545]
[1747732950514,3.95358206,2529.4,2529.3,0.52335958]
[1747732951018,3.95366306,2529.3,2529.2,0.7545]
[1747732951303,3.95366306,2529.3,2529.2,18.985916]
[1747732951535,3.95355232,2529.4,2529.2,17.916516]
[1747732951734,4.00285209,2529.9,2529.4,0.828]
[1747732951947,3.95335046,2529.5,2529.4,0.828]
[1747732952112,3.95335046,2529.5,2529.4,10.78635958]
[1747732952319,3.95335046,2529.5,2529.4,16.427]
[1747732953964,3.95335046,2529.5,2529.4,16.426]
[1747732958339,3.95335046,2529.5,2529.4,36.672115]
[1747732958542,3.95335046,2529.5,2529.4,26.522182]
[1747732958746,0.05,2529.9,2529.5,8.0]
[1747732959065,0.05,2529.9,2529.7,8.8108]
[1747732959229,0.05,2529.9,2529.8,37.025643]
[1747732959432,4.0027254,2529.9,2529.8,37.025643]
[1747732960160,4.0027254,2529.9,2529.8,33.254131]
[1747732960353,4.0027254,2529.9,2529.8,34.15043818]
[1747732961631,4.0027254,2529.9,2529.8,33.33743018]
[1747732962063,4.0027254,2529.9,2529.8,29.97940318]
[1747732962432,4.0027254,2529.9,2529.8,25.61030918]
[1747732963664,4.0027254,2529.9,2529.8,17.96530718]
[1747732963956,4.0027254,2529.9,2529.8,25.61030918]
[1747732964380,4.0027254,2529.9,2529.8,26.39650918]
[1747732964677,0.05,2529.9,2529.8,26.39650918]
[1747732964839,4.0027254,2529.9,2529.8,26.39650918]
[1747732965482,0.05,2529.9,2529.8,26.39650918]
[1747732965776,0.05,2529.9,2529.8,34.39650918]
[1747732965974,0.05,2529.9,2529.8,34.94650918]
[1747732966182,3.95138802,2530.8,2530.1,0.8313]
[1747732966483,3.95164256,2530.6,2530.4,0.7805]
[1747732966778,3.95164256,2530.6,2530.5,26.171503]
[1747732966942,3.95164256,2530.6,2530.5,17.328333]
[1747732967752,3.95164256,2530.6,2530.5,0.87805]
[1747732967959,3.95164256,2530.6,2530.5,29.466256]
[1747732968160,3.95164256,2530.6,2530.5,21.518]
[1747732968361,3.95164256,2530.6,2530.5,24.404572]
[1747732968783,3.95164256,2530.6,2530.5,21.518]
[1747732969096,0.05,2530.9,2530.6,8.0]
[1747732969250,3.95135402,2530.8,2530.7,11.2145256]
[1747732969448,3.95135402,2530.8,2530.7,34.443003]
[1747732969672,3.95135402,2530.8,2530.7,25.062]
[1747732973089,3.95135402,2530.8,2530.7,32.655]
[1747732974105,4.76755402,2530.8,2530.7,24.655]
[1747732974716,3.95135402,2530.8,2530.7,24.655]
[1747732976710,3.95135402,2530.8,2530.7,24.654]
[1747732977217,3.95135402,2530.8,2530.7,27.8893]
[1747732978278,3.95135402,2530.8,2530.7,24.654]
[1747732979102,3.95135402,2530.8,2530.7,17.062]
[1747732979307,4.77605402,2530.8,2530.7,17.062]
[1747732979521,4.77605402,2530.8,2530.7,24.654]
[1747732980130,3.95135402,2530.8,2530.7,24.654]
[1747732981503,5.49890904,2530.8,2530.7,24.654]
[1747732983626,5.49890904,2530.8,2530.7,17.062]
[1747732983829,5.49890904,2530.8,2530.7,24.654]
[1747732985950,5.49890904,2530.8,2530.7,17.062]
[1747732986155,5.49890904,2530.8,2530.7,24.655]
[1747732987633,6.04890904,2530.8,2530.7,17.062]
[1747732988139,14.86890904,2530.8,2530.7,17.062]
[1747732988336,0.819,2530.3,2529.9,17.059]
[1747732988548,3.95256916,2530.0,2529.9,17.059]
[1747732988737,3.95256916,2530.0,2529.9,24.652]
[1747732988914,3.95256916,2530.0,2529.9,17.059]
[1747732989110,3.95256916,2530.0,2529.9,24.652]
[1747732989312,3.95256916,2530.0,2529.9,35.1172]
[1747732989511,3.95256916,2530.0,2529.9,35.9378]
[1747732990452,3.95256916,2530.0,2529.9,19.5242]
[1747732990659,3.95256916,2530.0,2529.9,24.652]
[1747733000892,3.95319418,2529.6,2529.4,0.7799]
[1747733001203,3.95366306,2529.3,2529.2,0.7566]
[1747733001351,3.95366306,2529.3,2529.2,39.3176]
[1747733001552,3.95366306,2529.3,2529.2,31.3176]
[1747733001976,3.95366306,2529.3,2529.2,39.3176]
[1747733003099,3.95366306,2529.3,2529.2,33.3936]
[1747733003258,3.95366306,2529.3,2529.2,38.561]
[1747733003768,3.95366306,2529.3,2529.2,17.063]
[1747733004276,3.95366306,2529.3,2529.2,26.41841]
[1747733005808,3.95366306,2529.3,2529.2,24.637]
[1747733013808,3.95366306,2529.3,2529.2,25.451]
[1747733018731,3.95366306,2529.3,2529.2,17.877]
[1747733019035,3.95366306,2529.3,2529.2,31.378]
[1747733026376,3.95366306,2529.3,2529.2,39.378]
[1747733027886,3.95360418,2529.4,2529.3,8.0]
[1747733028049,3.95360418,2529.4,2529.3,13.852084]
[1747733028251,3.95360418,2529.4,2529.3,8.0]
[1747733028859,3.95360418,2529.4,2529.3,16.314621]
[1747733029057,3.95360418,2529.4,2529.3,10.204765]
[1747733029583,3.95360418,2529.4,2529.3,8.0]
[1747733030564,3.95366306,2529.3,2529.2,22.988]
[1747733030890,3.95366306,2529.3,2529.2,30.563]
[1747733036403,3.95366306,2529.3,2529.2,17.063]
[1747733036604,3.95366306,2529.3,2529.2,24.577]
[1747733040010,3.95366306,2529.3,2529.2,27.6272]
[1747733043035,4.7719909,2530.0,2529.3,0.799]
[1747733043203,3.95333128,2529.6,2529.3,0.799]
[1747733043403,3.95341052,2529.5,2529.3,0.799]
[1747733044130,3.95328214,2529.6,2529.3,0.799]
[1747733044435,3.95328214,2529.6,2529.5,8.0]
[1747733044612,3.95328214,2529.6,2529.5,11.256529]
[1747733044814,3.95328214,2529.6,2529.5,12.055529]
[1747733045137,3.95304101,2529.7,2529.5,12.055529]
[1747733045315,3.95210054,2530.3,2529.5,0.799]
[1747733045629,3.95319418,2529.6,2529.5,0.799]
[1747733045815,3.95319418,2529.6,2529.5,5.11090154]
[1747733046126,3.95319418,2529.6,2529.5,1.78802254]
[1747733046930,3.95309402,2529.7,2529.5,1.78802254]
[1747733047131,3.95309402,2529.7,2529.6,8.0]
[1747733047428,3.95309402,2529.7,2529.6,2.06117746]
[1747733047749,3.95350676,2529.4,2529.3,8.0]
[1747733048023,3.95350676,2529.4,2529.2,17.53159986]
[1747733048024,3.95366306,2529.3,2529.2,17.53159986]
[1747733048417,3.95366306,2529.3,2529.2,25.04559986]
[1747733049005,3.95366306,2529.3,2529.2,28.20495855]
[1747733049329,3.95366306,2529.3,2529.2,25.04559986]
[1747733050231,3.95366306,2529.3,2529.2,24.577]
[1747733051628,3.95366306,2529.3,2529.2,33.3956]
[1747733051936,3.95366306,2529.3,2529.2,39.054405]
[1747733052231,3.95346303,2529.5,2529.3,8.0]
[1747733052429,3.95321914,2529.6,2529.5,8.0]
[1747733052614,3.95338184,2529.5,2529.3,8.0]
[1747733052824,3.9531463,2529.7,2529.5,8.0]
[1747733052994,3.9530379,2529.7,2529.6,13.1652]
[1747733053330,3.9530379,2529.7,2529.6,11.904133]
[1747733053830,3.9530379,2529.7,2529.6,13.0945463]
[1747733054037,3.9530379,2529.7,2529.6,8.0]
[1747733054196,3.95366306,2529.3,2529.2,25.37]
[1747733054530,3.95366306,2529.3,2529.2,44.514619]
[1747733055028,3.95366306,2529.3,2529.2,39.295]
[1747733055232,3.95366306,2529.3,2529.2,49.847619]
[1747733056531,3.95366306,2529.3,2529.2,47.880619]
[1747733058031,3.95366306,2529.3,2529.2,39.295]
[1747733061635,3.95366306,2529.3,2529.2,59.352452]
[1747733061833,3.95366306,2529.3,2529.2,53.989807]
[1747733062436,3.95366306,2529.3,2529.2,46.8429]
[1747733063438,3.95366306,2529.3,2529.2,38.489]
[1747733066643,3.95366306,2529.3,2529.2,25.063]
[1747733066946,3.95366306,2529.3,2529.2,38.489]
[1747733067144,3.95366306,2529.3,2529.2,32.564]
[1747733067349,3.95366306,2529.3,2529.2,38.489]
[1747733068014,3.95366306,2529.3,2529.2,25.063]
[1747733068229,4.74456306,2529.3,2529.2,38.489]
[1747733068414,4.74456306,2529.3,2529.2,30.489]
[1747733068612,4.74456306,2529.3,2529.2,17.063]
[1747733068944,4.74456306,2529.3,2529.2,24.564]
[1747733070114,5.61437319,2529.3,2529.2,24.564]
[1747733071139,5.63837319,2529.3,2529.2,24.564]
[1747733071637,5.63837319,2529.3,2529.2,17.063]
[1747733071944,3.9550704,2528.4,2528.3,17.065]
[1747733072106,5.50947189,2528.4,2528.3,24.567]
[1747733072306,4.7184704,2528.4,2528.3,24.567]
[1747733075279,3.9550704,2528.4,2528.3,24.567]
[1747733076660,3.9550704,2528.4,2528.3,17.065]
[1747733076864,4.7166704,2528.4,2528.3,24.568]
[1747733078447,3.9550704,2528.4,2528.3,24.568]
[1747733079275,3.9550704,2528.4,2528.3,35.6224]
[1747733080240,3.95492336,2528.5,2528.4,8.0]
[1747733080580,3.95468502,2528.7,2528.5,0.7555]
[1747733080781,3.95326124,2529.6,2528.5,0.7555]
[1747733080782,3.95319418,2529.6,2528.5,0.7555]